bitfinex-derivatives/quotes_SOLF0:USTF0_20241222
["timestamp","ask_amount","ask_price","bid_price","bid_amount"]
[1734832042104,2.7525,181.75,181.68,2.7536]
[1734832042405,3.32,181.78,181.68,2.7536]
[1734832042600,2.7528,181.73,181.66,2.7537]
[1734832042806,2.7528,181.73,181.64,30.54327278]
[1734832043006,3.32,181.78,181.64,30.54327278]
[1734832043207,27.22327278,181.75,181.62,1.6555]
[1734832043408,27.22327278,181.72,181.55,3.3014]
[1734832043603,8.4427,181.71,181.56,27.22327278]
[1734832044312,2.7536,181.69,181.59,27.22327278]
[1734832044500,2.7536,181.69,181.6,3.32]
[1734832044808,6.7777,181.71,181.6,3.32]
[1734832045700,6.0732,181.71,181.65,2.7539]
[1734832045906,3.32,181.74,181.62,27.22327278]
[1734832046105,3.3822,181.76,181.63,1.6876]
[1734832046306,3.3822,181.76,181.68,2.7536]
[1734832046307,2.7528,181.73,181.68,2.7536]
[1734832046506,2.7528,181.73,181.64,1.6326]
[1734832047202,2.7528,181.73,181.64,3.3652]
[1734832047509,2.7528,181.73,181.65,3.32]
[1734832048412,2.7528,181.73,181.68,2.7535]
[1734832049413,6.7022,181.76,181.64,6.1192]
[1734832049606,6.7022,181.76,181.64,4.3866]
[1734832049813,27.22327278,181.75,181.59,27.22327278]
[1734832050011,2.754,181.65,181.6,2.7548]
[1734832050311,3.32,181.68,181.59,27.22327278]
[1734832050510,2.7534,181.69,181.64,2.7541]
[1734832050713,3.32,181.71,181.62,3.32]
[1734832051112,3.32,181.71,181.66,2.7537]
[1734832051411,1.6338,181.76,181.65,27.22327278]
[1734832052208,1.6338,181.76,181.63,5.0723]
[1734832052404,1.6685,181.75,181.63,5.0723]
[1734832053714,2.7529,181.73,181.67,2.7536]
[1734832053914,2.7529,181.73,181.63,5.0723]
[1734832054617,2.7526,181.75,181.65,27.22327278]
[1734832055018,1.6338,181.76,181.69,2.7533]
[1734832055217,2.7528,181.73,181.63,5.0723]
[1734832056021,2.7528,181.73,181.67,2.7536]
[1734832056419,1.6338,181.76,181.67,2.7536]
[1734832056922,3.32,181.75,181.67,2.7536]
[1734832057518,2.753,181.72,181.67,2.7536]
[1734832057724,3.32,181.75,181.69,2.7534]
[1734832058023,2.7528,181.73,181.63,5.0723]
[1734832058323,2.7528,181.73,181.66,2.7539]
[1734832058528,3.32,181.75,181.63,5.0723]
[1734832058714,30.54327278,181.75,181.63,1.6765]
[1734832058914,30.54327278,181.75,181.56,27.22327278]
[1734832059122,30.54327278,181.75,181.57,4.9475]
[1734832059429,30.54327278,181.75,181.59,27.22327278]
[1734832059618,2.7533,181.7,181.59,27.22327278]
[1734832060120,30.54327278,181.75,181.66,2.7538]
[1734832060325,3.32,181.74,181.62,3.32]
[1734832060821,2.7536,181.68,181.63,2.7543]
[1734832061124,3.32,181.69,181.59,27.22327278]
[1734832061522,2.7539,181.66,181.62,2.7545]
[1734832062522,2.7539,181.66,181.59,27.22327278]
[1734832062727,3.32,181.69,181.57,1.6275]
[1734832062922,1.6783,181.68,181.57,1.6275]
[1734832063323,1.6641,181.67,181.57,1.6275]
[1734832063525,2.7545,181.63,181.58,2.7549]
[1734832063725,3.32,181.64,181.55,3.3863]
[1734832064128,3.32,181.64,181.54,2.7557]
[1734832065526,2.7549,181.6,181.54,2.7557]
[1734832066529,27.22327278,181.66,181.49,1.7264]
[1734832066530,3.32,181.59,181.49,1.7264]
[1734832066732,3.32,181.58,181.47,61.98337104]
[1734832067025,3.32,181.57,181.47,61.98337104]
[1734832067230,4.9915,181.57,181.47,61.98337104]
[1734832067623,32.21477278,181.57,181.47,60.23337104]
[1734832067821,27.22327278,181.54,181.47,60.23337104]
[1734832068028,27.22327278,181.51,181.43,60.23337104]
[1734832068330,2.7572,181.44,181.43,60.23337104]
[1734832068930,6.0768,181.47,181.43,60.23337104]
[1734832069131,3.3256,181.49,181.43,60.23337104]
[1734832069326,3.3256,181.49,181.38,27.22327278]
[1734832069327,3.32,181.49,181.38,27.22327278]
[1734832069527,3.32,181.49,181.42,2.7575]
[1734832069931,3.32,181.49,181.39,3.32]
[1734832070124,2.7568,181.47,181.41,2.7577]
[1734832070325,3.32,181.49,181.39,3.32]
[1734832072135,3.28,181.53,181.41,27.22327278]
[1734832072436,3.28,181.53,181.42,1.6338]
[1734832072837,3.28,181.53,181.43,1.6734]
[1734832074433,2.7561,181.51,181.45,2.757]
[1734832075138,1.6541,181.55,181.45,3.28]
[1734832076242,1.6541,181.55,181.45,4.9708]
[1734832076541,1.6541,181.55,181.5,2.7562]
[1734832076738,3.28,181.56,181.45,4.9708]
[1734832077040,27.22327278,181.6,181.47,27.22327278]
[1734832077041,3.28,181.59,181.47,27.22327278]
[1734832077242,6.035,181.59,181.53,2.7558]
[1734832077540,2.755,181.59,181.53,2.7558]
[1734832077740,6.035,181.59,181.53,2.7558]
[1734832078035,3.28,181.59,181.51,2.756]
[1734832078340,3.28,181.59,181.47,27.22327278]
[1734832078540,2.7553,181.57,181.47,27.22327278]
[1734832078935,3.28,181.59,181.47,27.22327278]
[1734832079245,7.7366,181.61,181.5,27.22327278]
[1734832079540,7.7366,181.61,181.5,30.50327278]
[1734832080034,7.7366,181.61,181.56,2.7554]
[1734832080035,1.7019,181.61,181.56,2.7554]
[1734832080239,2.7544,181.63,181.51,1.6764]
[1734832080439,5.0181,181.65,181.52,1.6357]
[1734832080740,5.0181,181.65,181.53,27.22327278]
[1734832080931,5.0181,181.65,181.52,1.6357]
[1734832081134,2.7551,181.58,181.52,4.3915]
[1734832081337,3.28,181.59,181.52,1.6357]
[1734832081537,3.28,181.62,181.52,1.6357]
[1734832081939,5.0181,181.65,181.53,30.50327278]
[1734832082141,1.7381,181.65,181.54,1.602]
[1734832082342,3.28,181.67,181.54,1.602]
[1734832082543,6.0338,181.67,181.54,1.602]
[1734832082744,32.37347278,181.69,181.54,1.602]
[1734832082942,3.28,181.66,181.54,1.602]
[1734832083245,2.7541,181.65,181.59,2.7548]
[1734832083842,3.28,181.66,181.54,1.602]
[1734832084141,3.28,181.68,181.56,27.22327278]
[1734832084333,3.28,181.68,181.56,30.50327278]
[1734832085043,2.7538,181.67,181.61,2.7546]
[1734832085244,1.6518,181.69,181.56,30.50327278]
[1734832085443,3.28,181.7,181.56,30.50327278]
[1734832085636,3.28,181.7,181.56,27.22327278]
[1734832085840,1.7587,181.69,181.56,27.22327278]
[1734832086047,3.4409,181.69,181.54,1.602]
[1734832086243,3.4409,181.69,181.55,3.28]
[1734832086644,32.36597278,181.69,181.55,3.28]
[1734832087545,2.754,181.65,181.55,3.28]
[1734832087749,3.28,181.64,181.55,3.28]
[1734832087940,5.1427,181.69,181.55,3.28]
[1734832088141,27.22327278,181.75,181.58,27.22327278]
[1734832088345,3.28,181.74,181.59,4.9321]
[1734832089248,2.7534,181.7,181.64,2.7541]
[1734832089447,3.28,181.69,181.59,4.9321]
[1734832089648,3.28,181.69,181.59,1.6521]
[1734832089849,2.7538,181.67,181.62,2.7543]
[1734832090249,2.7541,181.65,181.59,4.4069]
[1734832090749,2.7541,181.65,181.6,2.7547]
[1734832090949,2.7541,181.65,181.55,27.22327278]
[1734832090950,3.28,181.64,181.55,27.22327278]
[1734832091144,3.28,181.64,181.54,1.602]
[1734832091447,3.28,181.64,181.52,32.13897278]
[1734832091751,1.6409,181.63,181.52,4.9157]
[1734832091947,1.6409,181.63,181.52,1.6357]
[1734832092146,28.86417278,181.63,181.47,3.3802]
[1734832092344,27.22327278,181.6,181.47,3.3802]
[1734832092540,5.0306,181.59,181.47,3.3802]
[1734832093150,3.28,181.59,181.47,3.3802]
[1734832093351,1.6409,181.63,181.49,27.22327278]
[1734832093552,1.6409,181.63,181.52,27.22327278]
[1734832093740,2.7542,181.64,181.59,2.7549]
[1734832094652,5.0306,181.65,181.52,27.22327278]
[1734832095649,5.0306,181.65,181.53,3.28]
[1734832096051,5.0306,181.65,181.56,2.7553]
[1734832097048,1.7506,181.65,181.53,3.28]
[1734832097247,5.0306,181.65,181.54,1.7384]
[1734832097654,3.3735,181.68,181.54,1.7384]
[1734832097953,3.28,181.67,181.55,27.22327278]
[1734832098357,3.28,181.67,181.56,3.4233]
[1734832098557,2.7542,181.65,181.59,2.7549]
[1734832098950,6.0339,181.67,181.61,2.7546]
[1734832099149,6.0339,181.67,181.56,3.4233]
[1734832099454,6.0339,181.67,181.58,3.28]
[1734832099656,27.22327278,181.72,181.58,30.50327278]
[1734832099852,1.6198,181.75,181.58,30.50327278]
[1734832099853,1.729,181.74,181.58,30.50327278]
[1734832100046,1.729,181.74,181.61,27.22327278]
[1734832100355,1.729,181.74,181.7,2.7532]
[1734832100554,2.7525,181.75,181.7,2.7532]
[1734832100850,6.0124,181.76,181.71,2.7531]
[1734832101056,1.729,181.8,181.71,2.7531]
[1734832101256,3.26,181.77,181.71,2.7531]
[1734832101556,1.729,181.8,181.65,6.732]
[1734832102056,3.26,181.79,181.65,6.732]
[1734832102748,2.7522,181.77,181.65,6.732]
[1734832103151,3.26,181.79,181.65,6.732]
[1734832103349,2.7527,181.74,181.65,6.732]
[1734832104459,2.7525,181.76,181.69,2.7534]
[1734832104752,1.729,181.8,181.65,6.732]
[1734832104958,4.989,181.8,181.67,27.22327278]
[1734832105157,2.7522,181.78,181.67,27.22327278]
[1734832106053,2.7522,181.78,181.7,2.7532]
[1734832106252,2.7524,181.76,181.67,27.22327278]
[1734832106654,4.989,181.8,181.67,27.22327278]
[1734832106854,2.7521,181.78,181.67,27.22327278]
[1734832107252,2.7521,181.78,181.7,27.22327278]
[1734832107456,3.26,181.83,181.71,3.26]
[1734832107755,3.26,181.84,181.73,27.22327278]
[1734832107962,3.26,181.84,181.74,3.4342]
[1734832108258,6.0112,181.84,181.78,2.7519]
[1734832109157,2.7516,181.81,181.76,2.7523]
[1734832109357,3.26,181.84,181.76,2.7523]
[1734832109552,2.7516,181.81,181.76,2.7523]
[1734832109761,3.26,181.84,181.71,1.7211]
[1734832110869,27.22327278,181.83,181.68,27.22327278]
[1734832111973,2.7523,181.77,181.71,2.7531]
[1734832112272,6.0123,181.77,181.71,2.7531]
[1734832112675,2.7524,181.76,181.71,2.7531]
[1734832113075,2.7524,181.76,181.7,2.7533]
[1734832113677,2.7524,181.76,181.68,27.22327278]
[1734832113876,3.26,181.77,181.72,2.7528]
[1734832114069,5.0936,181.87,181.68,27.22327278]
[1734832114070,3.26,181.82,181.68,27.22327278]
[1734832114377,3.26,181.82,181.71,27.22327278]
[1734832115170,2.7521,181.79,181.74,2.7527]
[1734832115377,3.26,181.82,181.68,27.22327278]
[1734832115569,3.26,181.82,181.66,3.26]
[1734832115973,3.26,181.82,181.65,35.41387278]
[1734832116173,3.26,181.82,181.68,27.22327278]
[1734832116370,2.7523,181.77,181.73,2.7529]
[1734832116568,2.7523,181.77,181.68,27.22327278]
[1734832116976,3.26,181.78,181.68,27.22327278]
[1734832117674,27.22327278,181.86,181.68,27.22327278]
[1734832117675,6.0118,181.81,181.68,27.22327278]
[1734832117876,6.0118,181.81,181.71,27.22327278]
[1734832118076,3.26,181.83,181.71,30.48327278]
[1734832119480,3.26,181.82,181.71,3.26]
[1734832119673,3.26,181.81,181.7,27.22327278]
[1734832120180,2.7523,181.77,181.7,27.22327278]
[1734832120578,2.7521,181.79,181.74,2.7527]
[1734832120878,3.26,181.81,181.74,2.7527]
[1734832121078,2.7521,181.78,181.73,2.7529]
[1734832121276,3.26,181.81,181.7,27.22327278]
[1734832121476,3.26,181.81,181.67,27.22327278]
[1734832121676,2.7527,181.75,181.67,27.22327278]
[1734832121875,6.0127,181.75,181.67,27.22327278]
[1734832122281,2.7532,181.72,181.67,2.7538]
[1734832122579,3.26,181.75,181.65,4.9306]
[1734832123480,2.7528,181.74,181.69,2.7534]
[1734832124274,3.26,181.75,181.65,1.6835]
[1734832125277,2.753,181.72,181.66,2.7539]
[1734832125478,3.26,181.75,181.65,1.6835]
[1734832125782,3.26,181.75,181.57,3.359]
[1734832125783,3.26,181.75,181.6,27.22327278]
[1734832126176,27.22327278,181.71,181.58,1.7241]
[1734832126477,4.8868,181.7,181.58,1.7241]
[1734832126877,3.2493,181.69,181.58,1.7241]
[1734832127184,2.7544,181.63,181.58,4.4792]
[1734832127382,2.7544,181.63,181.53,27.22327278]
[1734832127383,3.26,181.64,181.53,27.22327278]
[1734832127677,2.7552,181.58,181.52,2.756]
[1734832127876,3.26,181.59,181.51,5.0204]
[1734832128185,3.26,181.58,181.47,27.22327278]
[1734832128378,3.26,181.57,181.48,2.7567]
[1734832128579,3.26,181.57,181.47,27.22327278]
[1734832129078,27.22327278,181.65,181.5,27.22327278]
[1734832129379,3.2493,181.69,181.51,3.26]
[1734832129380,4.9247,181.64,181.51,3.26]
[1734832129575,3.26,181.63,181.51,3.26]
[1734832129983,3.26,181.63,181.53,27.22327278]
[1734832130179,3.26,181.63,181.54,4.9764]
[1734832130679,6.0141,181.66,181.56,27.22327278]
[1734832130882,2.7541,181.66,181.56,30.48327278]
[1734832131079,2.7552,181.58,181.44,60.23337104]
[1734832131280,3.26,181.58,181.48,27.22327278]
[1734832131680,2.7553,181.57,181.5,2.7563]
[1734832131880,3.26,181.58,181.48,27.22327278]
[1734832132780,3.26,181.58,181.46,3.26]
[1734832133175,2.7556,181.55,181.49,2.7565]
[1734832133380,3.26,181.57,181.46,3.26]
[1734832133580,3.26,181.57,181.48,27.22327278]
[1734832133886,3.26,181.57,181.45,27.22327278]
[1734832134075,3.26,181.57,181.46,1.6009]
[1734832134481,2.7558,181.55,181.49,2.7565]
[1734832134782,3.26,181.57,181.46,1.6009]
[1734832135587,1.7309,181.6,181.47,3.26]
[1734832135791,3.26,181.59,181.48,27.22327278]
[1734832136386,3.26,181.59,181.5,2.7562]
[1734832136387,2.7555,181.57,181.5,2.7562]
[1734832136586,2.7555,181.57,181.48,27.22327278]
[1734832137586,2.7555,181.57,181.51,2.7561]
[1734832137784,2.7556,181.56,181.47,3.26]
[1734832138187,2.7556,181.56,181.49,2.7564]
[1734832138389,2.7548,181.61,181.51,27.22327278]
[1734832138579,30.54897278,181.68,181.51,27.22327278]
[1734832138779,3.26,181.67,181.54,27.22327278]
[1734832138980,3.26,181.67,181.55,1.6599]
[1734832139691,3.26,181.67,181.6,2.7548]
[1734832139883,3.26,181.67,181.55,1.6599]
[1734832140480,3.26,181.67,181.57,27.22327278]
[1734832140684,3.26,181.67,181.58,3.26]
[1734832141085,3.26,181.67,181.6,2.7547]
[1734832141384,57.24,181.73,181.58,3.26]
[1734832141586,3.26,181.72,181.6,27.22327278]
[1734832141793,3.26,181.72,181.63,27.22327278]
[1734832142089,6.0126,181.75,181.68,2.7535]
[1734832142288,3.26,181.75,181.68,2.7535]
[1734832142484,3.26,181.75,181.64,4.9267]
[1734832142885,3.26,181.75,181.64,1.6667]
[1734832143486,2.7532,181.71,181.64,4.4208]
[1734832143688,2.7532,181.71,181.64,1.6667]
[1734832144091,2.7532,181.71,181.65,2.7541]
[1734832144286,2.7532,181.71,181.64,1.6667]
[1734832144287,2.7534,181.7,181.64,1.6667]
[1734832144487,3.26,181.7,181.64,1.6667]
[1734832144993,5.0112,181.79,181.64,1.6667]
[1734832144994,3.26,181.73,181.64,1.6667]
[1734832145292,3.3648,181.79,181.66,27.22327278]
[1734832145492,6.6248,181.79,181.66,27.22327278]
[1734832145692,2.7523,181.77,181.66,27.22327278]
[1734832145992,2.7523,181.77,181.71,2.7532]
[1734832146389,6.6248,181.79,181.64,1.6667]
[1734832147691,6.6248,181.79,181.68,2.7536]
[1734832148196,6.6248,181.79,181.64,1.6667]
[1734832148492,2.7524,181.77,181.68,2.7536]
[1734832148690,6.6248,181.79,181.67,3.26]
[1734832148993,2.7524,181.76,181.7,2.7532]
[1734832149195,2.7524,181.76,181.67,3.26]
[1734832149492,2.7524,181.76,181.69,2.7534]
[1734832149693,2.7524,181.76,181.67,3.26]
[1734832149897,3.3648,181.79,181.67,3.26]
[1734832150087,27.22327278,181.83,181.69,27.22327278]
[1734832150294,2.7515,181.82,181.72,27.22327278]
[1734832150494,3.26,181.83,181.78,2.7521]
[1734832151295,6.729,181.84,181.78,2.7521]
[1734832151491,2.7514,181.83,181.78,2.7521]
[1734832151993,2.7517,181.81,181.76,2.7523]
[1734832152297,6.729,181.84,181.73,1.7633]
[1734832152493,2.7524,181.77,181.71,2.7532]
[1734832152698,3.26,181.77,181.71,2.7532]
[1734832152897,3.26,181.77,181.7,3.41]
[1734832153197,3.26,181.8,181.7,3.41]
[1734832154404,2.7521,181.78,181.73,2.7529]
[1734832154699,3.26,181.8,181.73,2.7529]
[1734832154995,3.26,181.8,181.7,3.41]
[1734832155198,2.7523,181.77,181.71,2.7532]
[1734832156791,3.26,181.8,181.7,3.41]
[1734832156993,3.26,181.79,181.7,3.41]
[1734832157296,3.26,181.79,181.72,2.7529]
[1734832157496,3.26,181.79,181.7,3.41]
[1734832158504,3.26,181.79,181.63,1.7286]
[1734832158505,3.26,181.79,181.66,30.48327278]
[1734832159101,2.7527,181.74,181.69,2.7535]
[1734832159302,3.26,181.79,181.66,30.48327278]
[1734832159799,3.26,181.81,181.69,27.22327278]
[1734832160194,3.26,181.81,181.7,2.7533]
[1734832160195,2.7526,181.75,181.7,2.7533]
[1734832161408,3.26,181.75,181.66,27.22327278]
[1734832161599,3.26,181.75,181.64,6.5354]
[1734832162099,2.7529,181.73,181.68,2.7535]
[1734832162501,3.26,181.75,181.64,3.2754]
[1734832162696,2.7531,181.72,181.65,2.7541]
[1734832162901,3.25,181.74,181.65,2.7541]
[1734832163608,30.47327278,181.74,181.59,27.22327278]
[1734832163800,30.47327278,181.74,181.56,32.22777278]
[1734832164108,2.7535,181.69,181.59,27.22327278]
[1734832164301,3.25,181.74,181.62,27.22327278]
[1734832164500,1.6265,181.76,181.63,5.0063]
[1734832164501,3.26,181.76,181.63,5.0063]
[1734832164706,2.7527,181.74,181.65,27.22327278]
[1734832164909,3.26,181.76,181.66,1.7668]
[1734832165799,3.26,181.76,181.66,5.0268]
[1734832166705,2.7529,181.74,181.69,2.7535]
[1734832167807,3.26,181.76,181.66,5.0268]
[1734832168007,3.26,181.76,181.64,1.6502]
[1734832169008,2.7532,181.71,181.66,2.7539]
[1734832170507,3.26,181.76,181.64,3.3854]
[1734832170706,2.7529,181.73,181.65,27.22327278]
[1734832170904,3.26,181.76,181.65,27.22327278]
[1734832171104,3.3134,181.79,181.65,27.22327278]
[1734832171499,3.26,181.78,181.65,27.22327278]
[1734832171706,2.7526,181.75,181.7,2.7533]
[1734832172398,2.7527,181.74,181.68,6.0135]
[1734832172910,2.7527,181.74,181.68,3.26]
[1734832173210,2.7527,181.74,181.69,2.7534]
[1734832175105,3.26,181.78,181.64,3.3854]
[1734832175304,30.48327278,181.77,181.64,1.7352]
[1734832175505,27.22327278,181.74,181.59,115.4567208]
[1734832176105,2.7539,181.67,181.62,2.7544]
[1734832177800,3.26,181.68,181.58,3.2847]
[1734832178504,3.26,181.68,181.62,2.7546]
[1734832179207,2.7539,181.67,181.62,2.7546]
[1734832180804,6.0137,181.68,181.63,2.7543]
[1734832181113,2.7537,181.68,181.59,27.22327278]
[1734832181413,3.26,181.71,181.59,27.22327278]
[1734832181600,1.6938,181.76,181.62,27.22327278]
[1734832181601,3.26,181.74,181.62,27.22327278]
[1734832181805,3.26,181.74,181.63,3.26]
[1734832182505,3.26,181.74,181.64,2.7542]
[1734832182706,3.26,181.74,181.63,3.26]
[1734832183008,2.7535,181.7,181.63,3.26]
[1734832183209,3.26,181.74,181.63,3.26]
[1734832183711,3.26,181.74,181.66,2.7538]
[1734832184107,2.7533,181.71,181.66,2.7538]
[1734832187112,2.7534,181.7,181.65,2.7541]
[1734832187712,2.7534,181.7,181.63,3.26]
[1734832187911,2.7534,181.7,181.66,2.7539]
[1734832189213,2.7536,181.69,181.64,2.7542]
[1734832189418,3.26,181.69,181.58,23.30482706]
[1734832190312,2.7538,181.67,181.62,2.7545]
[1734832191012,16.76012706,181.75,181.61,16.76012706]
[1734832191209,3.26,181.75,181.61,16.76012706]
[1734832191816,2.7532,181.71,181.61,16.76012706]
[1734832192224,2.7532,181.71,181.66,2.7538]
[1734832192409,2.7534,181.7,181.66,2.7538]
[1734832193018,2.7537,181.68,181.63,2.7543]
[1734832193319,3.26,181.7,181.63,2.7543]
[1734832193714,2.7538,181.68,181.63,2.7543]
[1734832195017,2.7538,181.68,181.6,3.26]
[1734832195018,3.26,181.7,181.61,16.76012706]
[1734832195521,3.26,181.73,181.61,16.76012706]
[1734832195717,2.7533,181.71,181.66,2.7539]
[1734832196123,2.7533,181.71,181.67,2.7538]
[1734832199516,2.7533,181.71,181.61,16.76012706]
[1734832199721,3.26,181.73,181.61,16.76012706]
[1734832199916,2.7536,181.69,181.61,16.76012706]
[1734832200127,3.26,181.73,181.62,2.7545]
[1734832200427,2.7538,181.68,181.58,83.5381981]
[1734832200620,3.26,181.73,181.62,2.7544]
[1734832201119,2.7539,181.67,181.62,2.7544]
[1734832201425,3.26,181.73,181.62,2.7544]
[1734832202225,2.7539,181.67,181.62,2.7544]
[1734832202620,3.26,181.68,181.6,2.7547]
[1734832202824,16.76012706,181.67,181.55,60.23337104]
[1734832203023,21.93232706,181.67,181.55,60.23337104]
[1734832203329,2.7553,181.58,181.55,60.23337104]
[1734832203726,2.7553,181.58,181.52,1.7471]
[1734832204433,3.26,181.66,181.53,16.76012706]
[1734832204632,3.26,181.7,181.56,16.76012706]
[1734832205028,2.7535,181.69,181.56,16.76012706]
[1734832205226,3.26,181.7,181.56,16.76012706]
[1734832206233,3.26,181.7,181.59,16.76012706]
[1734832206434,2.7538,181.67,181.62,2.7545]
[1734832206732,3.26,181.73,181.62,16.76012706]
[1734832206932,3.26,181.74,181.62,16.76012706]
[1734832208033,3.26,181.74,181.62,27.23232235]
[1734832208330,2.753,181.72,181.66,2.7538]
[1734832208531,3.26,181.74,181.64,3.26]
[1734832208724,3.2942,181.78,181.64,3.26]
[1734832209129,3.2942,181.78,181.65,27.23232235]
[1734832209432,6.5542,181.78,181.65,27.23232235]
[1734832210234,2.7524,181.77,181.68,2.7535]
[1734832210435,2.7524,181.77,181.69,1.7064]
[1734832211333,2.7524,181.77,181.69,4.9664]
[1734832211633,2.7524,181.77,181.71,2.7532]
[1734832212133,3.2942,181.78,181.69,1.7064]
[1734832212532,3.2942,181.78,181.63,3.26]
[1734832212733,3.2942,181.78,181.65,2.754]
[1734832213234,27.23232235,181.76,181.63,1.7064]
[1734832213428,27.23232235,181.76,181.64,2.7542]
[1734832214332,2.7535,181.7,181.64,2.7542]
[1734832214637,3.26,181.71,181.66,2.7539]
[1734832214936,27.23232235,181.76,181.63,1.7064]
[1734832214937,3.26,181.73,181.63,1.7064]
[1734832215435,2.7541,181.66,181.6,3.3781]
[1734832215630,3.26,181.68,181.58,3.26]
[1734832215835,3.26,181.67,181.58,3.26]
[1734832216128,3.26,181.67,181.57,60.23337104]
[1734832216334,3.26,181.67,181.56,3.26]
[1734832216831,2.7543,181.64,181.58,2.755]
[1734832217028,27.23232235,181.73,181.56,30.49232235]
[1734832217227,3.26,181.72,181.59,27.23232235]
[1734832217431,2.7531,181.72,181.67,2.7537]
[1734832217636,3.26,181.73,181.63,3.26]
[1734832217839,3.26,181.73,181.64,1.6249]
[1734832218239,22.33211972,181.76,181.64,1.6249]
[1734832218434,3.26,181.79,181.66,27.22969521]
[1734832218840,2.7524,181.77,181.71,2.7531]
[1734832219146,30.48969521,181.79,181.64,1.6249]
[1734832219743,30.48969521,181.79,181.66,2.7538]
[1734832220038,2.7529,181.73,181.67,2.7537]
[1734832221046,3.26,181.74,181.67,2.7537]
[1734832221249,3.26,181.74,181.64,1.6249]
[1734832221645,3.26,181.74,181.63,3.4459]
[1734832221947,28.86129521,181.73,181.58,89.23336625]
[1734832222151,27.22969521,181.7,181.58,62.00367104]
[1734832222347,27.22969521,181.7,181.58,60.23337104]
[1734832222348,3.26,181.69,181.58,60.23337104]
[1734832222550,2.7545,181.63,181.58,60.23337104]
[1734832222748,27.22969521,181.7,181.57,90.98864802]
[1734832222749,3.26,181.64,181.57,2.7552]
[1734832222948,3.26,181.65,181.57,2.7552]
[1734832223149,2.7548,181.61,181.56,1.7317]
[1734832223840,6.0149,181.6,181.54,2.7557]
[1734832224046,3.26,181.6,181.53,1.7703]
[1734832225053,2.755,181.59,181.53,4.5262]
[1734832225248,3.4012,181.65,181.53,29.03003918]
[1734832225448,6.6612,181.65,181.53,29.03003918]
[1734832225853,6.6612,181.65,181.58,2.755]
[1734832227050,2.7537,181.68,181.61,2.7546]
[1734832227355,6.0137,181.68,181.56,27.25973918]
[1734832227653,3.26,181.68,181.56,27.25973918]
[1734832227856,3.26,181.68,181.56,30.51973918]
[1734832228357,3.26,181.68,181.59,2.755]
[1734832228855,2.7542,181.65,181.6,2.7548]
[1734832229056,27.25973918,181.74,181.59,27.25973918]
[1734832229254,3.26,181.72,181.6,3.4832]
[1734832229449,3.26,181.72,181.62,27.25973918]
[1734832229650,3.26,181.72,181.63,1.6568]
[1734832229851,3.3977,181.75,181.65,27.25973918]
[1734832230050,3.26,181.76,181.65,27.25973918]
[1734832230358,2.7525,181.76,181.7,2.7532]
[1734832231653,2.7527,181.74,181.68,2.7535]
[1734832233051,3.26,181.78,181.66,6.0138]
[1734832233262,3.26,181.78,181.66,2.7538]
[1734832233554,3.26,181.78,181.63,4.9168]
[1734832233755,3.26,181.8,181.65,27.25973918]
[1734832234158,2.7525,181.76,181.68,2.7535]
[1734832234357,30.51973918,181.8,181.68,2.7535]
[1734832234958,30.51973918,181.8,181.67,2.7538]
[1734832235254,30.51973918,181.8,181.63,4.9168]
[1734832235647,27.25973918,181.77,181.63,4.9168]